bitfinex-derivatives/quotes_ETHF0:USTF0_20210405
["timestamp","ask_amount","ask_price","bid_price","bid_amount"]
[1617657775899,42.27851177,2116.4,2116.3,5.93]
[1617657776298,35.01763374,2116.4,2114.8,5.88]
[1617657776498,58.4789,2115.4,2114.8,5.88]
[1617657776698,2.182,2115.7,2114.7,2.0]
[1617657776898,1.95698364,2114.9,2114.7,2.0]
[1617657777098,3.91117558,2115.4,2114.7,2.0]
[1617657777099,1.95696538,2115.0,2114.8,5.87]
[1617657777300,1.95696538,2115.0,2114.8,7.87]
[1617657777804,1.95696538,2115.0,2114.9,4.90695]
[1617657778202,1.95696538,2115.0,2114.9,10.85695]
[1617657782310,2.79442084,2115.1,2114.9,8.85695]
[1617657782709,3.32777934,2115.0,2114.9,8.85695]
[1617657782910,5.56190466,2115.0,2114.9,8.85695]
[1617657783309,6.09518566,2115.0,2114.9,8.85695]
[1617657784010,7.03738566,2115.0,2114.9,8.85695]
[1617657784312,6.09518566,2115.0,2114.9,8.85695]
[1617657784711,3.300681,2115.0,2114.9,8.85695]
[1617657785912,6.207631,2115.0,2114.9,8.85695]
[1617657786716,10.11924128,2115.0,2114.9,8.85695]
[1617657787718,6.207631,2115.0,2114.9,8.85695]
[1617657790924,8.99612815,2115.0,2114.9,8.85695]
[1617657795328,6.207631,2115.0,2114.9,8.85695]
[1617657797229,10.11006432,2115.0,2114.9,8.85695]
[1617657797632,6.207631,2115.0,2114.9,8.85695]
[1617657800534,10.11023173,2115.0,2114.9,8.85695]
[1617657801742,6.207631,2115.0,2114.9,8.85695]
[1617657801939,3.440231,2115.0,2114.9,8.85695]
[1617657802341,0.533281,2115.0,2114.9,8.85695]
[1617657802834,1.94936174,2115.0,2114.9,8.85695]
[1617657804036,1.94889009,2115.1,2114.9,8.85695]
[1617657804235,0.53230869,2115.0,2114.9,8.85695]
[1617657804736,1.94889009,2115.1,2114.9,8.85695]
[1617657805135,1.94887375,2115.0,2114.9,8.85695]
[1617657805535,0.53243456,2115.0,2114.9,8.85695]
[1617657805938,1.94889181,2115.0,2114.9,8.85695]
[1617657806336,58.15014108,2115.0,2114.9,8.85695]
[1617657806737,57.61769181,2115.0,2114.9,8.85695]
[1617657807036,62.33883332,2115.0,2114.9,8.85695]
[1617657811341,60.38994151,2115.0,2114.9,8.85695]
[1617657826071,62.33793332,2115.0,2114.9,8.85695]
[1617657826570,62.33793332,2115.0,2114.9,5.95]
[1617657826971,62.33793332,2115.0,2114.1,7.92]
[1617657827170,65.24488332,2115.0,2114.9,8.74695]
[1617657827571,65.24488332,2115.0,2114.9,2.90695]
[1617657827871,65.24488332,2115.0,2114.9,8.70695]
[1617657832475,63.29689151,2115.0,2114.9,8.70695]
[1617657833377,65.24519428,2115.0,2114.9,8.70695]
[1617657838282,65.24519428,2115.0,2114.9,9.65445]
[1617657838483,65.24519428,2115.0,2114.9,8.70695]
[1617657840886,63.29689151,2115.0,2114.9,8.70695]
[1617657842687,7.62809151,2115.0,2114.9,8.70695]
[1617657842887,9.57634195,2115.0,2114.9,8.70695]
[1617657843088,5.38835427,2115.0,2114.9,8.70695]
[1617657843286,2.48140427,2115.0,2114.9,8.70695]
[1617657843487,0.53315383,2115.0,2114.9,8.70695]
[1617657843887,2.48255654,2115.0,2114.9,8.70695]
[1617657844290,1.94940271,2115.0,2114.9,8.70695]
[1617657844592,1.9493211,2115.1,2114.9,8.70695]
[1617657844989,1.9493211,2115.1,2114.9,10.70695]
[1617657847090,2.78355267,2115.3,2114.9,10.70695]
[1617657847091,1.11264889,2115.0,2114.9,10.70695]
[1617657847288,0.39566607,2115.2,2115.0,59.9378]
[1617657847689,0.39566607,2115.2,2115.1,5.78]
[1617657847889,0.39566607,2115.2,2115.1,6.7393]
[1617657848289,0.39566607,2115.2,2115.1,5.78]
[1617657849489,0.39566607,2115.2,2115.1,6.7203]
[1617657852895,0.39566607,2115.2,2115.1,5.78]
[1617657853998,0.39566607,2115.2,2115.1,6.7122]
[1617657854198,2.78722981,2115.3,2115.1,6.7122]
[1617657854503,2.78722981,2115.3,2115.1,5.78]
[1617657855400,2.78722981,2115.3,2115.2,2.90695]
[1617657855800,2.78722981,2115.3,2115.2,8.78695]
[1617657856700,3.90187833,2115.4,2115.2,8.78695]
[1617657856902,4.41004474,2115.4,2115.2,8.78695]
[1617657857302,3.90187833,2115.4,2115.2,8.78695]
[1617657858104,2.78782297,2115.3,2115.2,8.78695]
[1617657858605,2.78782297,2115.3,2092.1,8.0]
[1617657858804,2.78782297,2115.3,2115.2,5.69]
[1617657859205,2.78782297,2115.3,2114.9,2.4451]
[1617657859404,2.78782297,2115.3,2115.2,2.90695]
[1617657859605,2.78782297,2115.3,2115.2,64.70105]
[1617657859805,2.78782297,2115.3,2115.2,63.76605]
[1617657865014,3.90807318,2115.3,2115.2,63.76605]
[1617657868314,3.90663808,2115.4,2115.2,63.76605]
[1617657868816,0.50847396,2115.3,2115.2,63.76605]
[1617657869017,3.255288,2115.3,2115.2,63.76605]
[1617657869618,0.46427396,2115.3,2115.2,63.76605]
[1617657870019,2.79101883,2115.4,2115.2,63.76605]
[1617657875425,35.29195,2115.0,2114.9,4.0902]
[1617657875623,2.79101883,2115.4,2114.9,2.0]
[1617657875824,2.79101883,2115.4,2115.3,5.9]
[1617657876027,2.79101883,2115.4,2115.2,2.76]
[1617657876227,1.83661883,2115.4,2115.0,1.8818]
[1617657876428,0.47130604,2115.4,2115.3,5.94]
[1617657876629,0.47130604,2115.4,2115.3,0.9404]
[1617657876828,3.90606746,2115.8,2115.3,0.9404]
[1617657877028,3.90606746,2115.8,2115.3,6.6404]
[1617657877227,1.95442045,2115.4,2115.3,6.6404]
[1617657877627,1.95442045,2115.4,2115.3,9.54735]
[1617657879029,3.90601208,2115.7,2115.4,66.9379]
[1617657879429,1.95179783,2115.5,2115.4,66.9379]
[1617657879628,1.95179783,2115.5,2115.4,72.8079]
[1617657880330,1.95111815,2115.6,2115.4,72.8079]
[1617657880731,1.11332945,2115.5,2115.4,72.8079]
[1617657881130,1.79312063,2115.5,2115.4,72.8079]
[1617657881531,1.11332945,2115.5,2115.4,75.71485]
[1617657883031,1.11328586,2115.6,2115.4,75.71485]
[1617657885537,1.11328398,2115.5,2115.4,75.71485]
[1617657885836,1.11327514,2115.6,2115.4,75.71485]
[1617657887238,1.11327514,2115.6,2115.4,8.77695]
[1617657888240,1.11326623,2115.7,2115.4,8.77695]
[1617657888638,0.89060621,2115.5,2115.4,8.77695]
[1617657889240,0.73980527,2115.5,2115.4,8.77695]
[1617657889640,0.06080621,2115.5,2115.4,8.77695]
[1617657890843,0.06080621,2115.5,2115.4,10.77695]
[1617657891243,1.33564988,2115.6,2115.4,10.77695]
[1617657891443,0.66681426,2115.6,2115.4,10.77695]
[1617657893846,1.08101336,2116.0,2115.4,10.77695]
[1617657894049,1.55391336,2116.0,2115.6,74.5476]
[1617657894247,0.60881336,2116.0,2115.6,76.6424]
[1617657894449,0.60881336,2116.0,2115.7,5.75]
[1617657894648,1.79219497,2116.2,2116.0,55.8808]
[1617657894849,5.91972674,2116.3,2115.7,7.6622]
[1617657895248,5.91972674,2116.3,2116.0,55.8868]
[1617657895649,5.91972674,2116.3,2116.2,2.90695]
[1617657896049,5.91972674,2116.3,2116.2,6.95695]
[1617657896448,6.87542674,2116.3,2116.2,6.95695]
[1617657896649,5.91972674,2116.3,2116.2,6.95695]
[1617657897551,8.82667674,2116.3,2116.2,6.95695]
[1617657901356,6.87914154,2116.3,2116.2,6.95695]
[1617657901956,3.9015803,2116.3,2116.2,6.95695]
[1617657907959,3.1022803,2116.3,2116.2,6.95695]
[1617657908163,4.0539803,2116.3,2116.2,6.95695]
[1617657908360,3.1022803,2116.3,2116.2,6.95695]
[1617657909463,4.0376803,2116.3,2116.2,6.95695]
[1617657910062,3.1022803,2116.3,2116.2,6.95695]
[1617657910865,2.35289262,2116.3,2116.2,6.95695]
[1617657911064,1.85119262,2116.3,2116.2,6.95695]
[1617657911865,29.0,2116.4,2116.2,4.05]
[1617657912064,28.5156,2116.4,2116.2,4.05]
[1617657912365,31.42255,2116.4,2116.3,2.90695]
[1617657912765,31.42255,2116.4,2116.3,8.57695]
[1617657912964,31.42255,2116.4,2116.3,2.90695]
[1617657913365,32.35715,2116.4,2116.3,8.61695]
[1617657913764,31.42255,2116.4,2116.3,8.61695]
[1617657916069,30.61765,2116.4,2116.3,8.61695]
[1617657916271,31.57515,2116.4,2116.3,8.61695]
[1617657916465,28.51215,2116.4,2116.3,8.61695]
[1617657916765,27.80575,2116.4,2116.3,8.61695]
[1617657916966,22.64255,2116.4,2116.3,8.61695]
[1617657919469,18.94025,2116.4,2116.3,8.61695]
[1617657919669,17.06285,2116.4,2116.3,8.61695]
[1617657921971,0.76775,2116.4,2116.3,8.61695]
[1617657922172,1.65520897,2116.4,2116.3,8.61695]
[1617657923373,0.66216606,2116.6,2116.3,8.61695]
[1617657924279,1.94583905,2116.7,2116.3,8.61695]
[1617657924477,2.90695,2116.4,2116.3,8.61695]
[1617657927481,2.43545,2116.4,2116.3,8.61695]
[1617657929785,14.43545,2116.4,2116.3,8.61695]
[1617657933988,15.38005,2116.4,2116.3,8.61695]
[1617657934391,14.43545,2116.4,2116.3,8.61695]
[1617657936090,16.3828182,2116.4,2116.3,8.61695]
[1617657939599,16.3828182,2116.4,2116.3,74.00665]
[1617657940497,14.43545,2116.4,2116.3,74.00665]
[1617657943905,16.38310588,2116.4,2116.3,74.00665]
[1617657946910,14.43545,2116.4,2116.3,74.00665]
[1617657948411,17.2196022,2116.4,2116.3,74.00665]
[1617657948811,14.43545,2116.4,2116.3,74.00665]
[1617657949210,17.21957365,2116.4,2116.3,74.00665]
[1617657949810,17.21957365,2116.4,2116.3,8.61695]
[1617657951211,77.83107365,2116.4,2116.3,8.61695]
[1617657951611,81.04608906,2116.4,2116.3,8.61695]
[1617657956417,20.43458906,2116.4,2116.3,8.61695]
[1617657957217,17.21957365,2116.4,2116.3,63.15355]
[1617657957417,17.21957365,2116.4,251.11,124.69865608]
[1617657957617,59.613,2115.9,2115.1,2.0]
[1617657957817,59.613,2115.9,2115.6,3.35]
[1617657958018,0.6688941,2115.3,2115.2,0.89]
[1617657958419,0.6688941,2115.3,2115.1,2.9565]
[1617657958617,0.6688941,2115.3,2115.2,5.82]
[1617657958817,0.6688941,2115.3,2115.2,10.72695]
[1617657964122,0.5877941,2115.3,2115.2,10.72695]
[1617657966327,0.89191872,2115.6,2115.2,10.72695]
[1617657966827,0.89191872,2115.6,2115.5,2.90695]
[1617657967227,0.89191872,2115.6,2115.5,8.83695]
[1617657969630,1.95665764,2115.8,2115.5,8.83695]
[1617657975443,1.95664927,2115.7,2115.5,8.83695]
[1617657981350,1.95718738,2115.6,2115.5,8.83695]
[1617657983152,0.78768738,2115.6,2115.5,8.83695]
[1617657983351,2.7671924,2115.9,2115.5,8.83695]
[1617657983551,0.55664074,2115.6,2115.5,8.83695]
[1617657983752,2.1376924,2115.9,2115.5,8.83695]
[1617657985052,2.1376924,2115.9,2115.8,2.90695]
[1617657985252,2.1376924,2115.9,2115.8,3.85695]
[1617657985452,2.1376924,2115.9,2115.8,9.58695]
[1617657985652,1.8196924,2115.9,2115.8,9.58695]
[1617657985853,2.36662298,2115.9,2115.8,9.58695]
[1617657986253,1.8196924,2115.9,2115.8,9.58695]
[1617657987157,1.7677924,2115.9,2115.8,8.63695]
[1617657987354,2.3139505,2115.9,2115.8,8.63695]
[1617657987753,1.7677924,2115.9,2115.8,8.63695]
[1617657988154,1.7677924,2115.9,2115.8,9.57695]
[1617657988556,68.2471924,2115.9,2115.8,9.57695]
[1617657988756,73.0509606,2115.9,2115.8,9.57695]
[1617657990358,6.5715606,2115.9,2115.8,9.57695]
[1617657990761,6.5715606,2115.9,2115.8,8.63695]
[1617657990962,1.7677924,2115.9,2115.8,8.63695]
[1617657991362,2.31628977,2115.9,2115.8,8.63695]
[1617657991762,1.7677924,2115.9,2115.8,9.57515]
[1617657992062,2.31632848,2115.9,2115.8,9.57515]
[1617657992464,1.7677924,2115.9,2115.8,9.57515]
[1617657992663,0.8343924,2115.9,2115.8,9.57515]
[1617657993064,1.37362255,2115.9,2115.8,9.57515]
[1617657993263,0.8343924,2115.9,2115.8,9.57515]
[1617657993463,0.3646924,2115.9,2115.8,9.57515]
[1617657993667,0.89890478,2115.9,2115.8,9.57515]
[1617657993863,6.12727576,2116.1,2115.8,9.57515]
[1617657994665,5.07947576,2116.1,2115.8,9.57515]
[1617657994865,4.98377576,2116.1,2115.8,9.57515]
[1617657995566,4.69977576,2116.1,2115.8,9.57515]
[1617657995766,4.55777576,2116.1,2115.8,9.57515]
[1617657996465,4.09097576,2116.1,2115.8,9.57515]
[1617657997969,3.61747576,2116.1,2115.8,9.57515]
[1617657998168,4.55697576,2116.1,2115.8,9.57515]
[1617657998370,3.52547576,2116.1,2115.8,9.57515]
[1617658001172,14.0,2115.9,2115.8,9.57515]
[1617658001673,15.02423992,2115.9,2115.8,9.57515]
[1617658005078,15.96233992,2115.9,2115.8,9.57515]
[1617658005478,15.02423992,2115.9,2115.8,9.57515]
[1617658011083,15.95813992,2115.9,2115.8,9.57515]
[1617658011283,15.02423992,2115.9,2115.8,9.57515]
[1617658012686,15.02423992,2115.9,2115.8,8.63695]
[1617658013686,15.02423992,2115.9,2115.8,9.58175]
[1617658014088,15.02423992,2115.9,2115.8,8.63695]
[1617658014486,12.18493992,2115.9,2115.8,8.63695]
[1617658014690,11.47953992,2115.9,2115.8,8.63695]
[1617658015087,14.27488314,2115.9,2115.8,8.63695]
[1617658015387,13.25064322,2115.9,2115.8,8.63695]
[1617658015786,79.87405938,2115.9,2115.8,8.63695]
[1617658016188,76.2244,2115.9,2115.8,8.63695]
[1617658016387,83.07827623,2115.9,2115.8,6.6624]
[1617658016588,83.07827623,2115.9,2115.8,5.73]
[1617658016987,83.07827623,2115.9,2114.6,5.72]
[1617658017388,83.07827623,2115.9,2115.8,5.68]
[1617658017587,80.13713595,2115.9,2115.5,2.90695]
[1617658017888,76.2244,2115.9,2115.8,5.74]
[1617658018287,76.2244,2115.9,2115.5,2.90695]
[1617658018491,76.2244,2115.9,2115.8,5.84]
[1617658018893,76.2244,2115.9,2115.6,5.94]
[1617658019094,76.2244,2115.9,2115.8,5.76]
[1617658019393,80.13461386,2115.9,2115.6,5.75]
[1617658019593,2.90695,2115.7,2115.6,5.75]
[1617658019794,2.90695,2115.7,2115.6,0.9361]
[1617658019993,2.90695,2115.7,2115.6,5.87]
[1617658020293,5.70069895,2115.7,2115.6,5.87]
[1617658020793,2.90695,2115.7,2115.6,5.87]
[1617658021094,5.70073415,2115.7,2115.6,5.87]
[1617658022895,2.90695,2115.7,2115.6,5.87]
[1617658024796,2.90695,2115.7,2115.6,6.8127]
[1617658024995,2.90695,2115.7,2115.6,5.87]
[1617658025896,5.47149203,2115.7,2115.6,5.87]
[1617658026296,2.67785,2115.7,2115.6,5.87]
[1617658026596,5.47145941,2115.7,2115.6,5.87]
[1617658027297,2.67785,2115.7,2115.6,5.87]
[1617658029401,5.47162231,2115.7,2115.6,5.87]
[1617658029800,2.67785,2115.7,2115.6,5.87]
[1617658030201,3.06999403,2115.7,2115.6,5.87]
[1617658030902,6.98035679,2115.7,2115.6,5.87]
[1617658031601,5.86116315,2115.7,2115.6,5.87]
[1617658033303,3.06999403,2115.7,2115.6,5.87]
[1617658033703,5.86068748,2115.7,2115.6,5.87]
[1617658034405,6.97612871,2115.7,2115.6,5.87]
[1617658034804,6.97612871,2115.7,2115.6,6.8217]
[1617658035006,6.97612871,2115.7,2115.6,5.87]
[1617658042517,3.06999403,2115.7,2115.6,5.87]
[1617658046321,5.06999403,2115.7,2115.6,5.87]
[1617658047624,8.97174411,2115.7,2115.6,5.87]
[1617658048024,5.06999403,2115.7,2115.6,5.87]
[1617658048324,8.97180867,2115.7,2115.6,5.87]
[1617658052928,5.06999403,2115.7,2115.6,5.87]
[1617658057635,8.96783054,2115.7,2115.6,5.87]
[1617658061337,9.90813054,2115.7,2115.6,5.87]
[1617658061538,8.96783054,2115.7,2115.6,5.87]
[1617658064345,5.06999403,2115.7,2115.6,5.87]
[1617658064645,8.96463589,2115.7,2115.6,5.87]
[1617658065345,5.06999403,2115.7,2115.6,5.87]
[1617658065846,8.96458864,2115.7,2115.6,5.87]
[1617658066447,8.51524876,2115.7,2115.6,5.87]
[1617658066646,8.51524876,2115.7,2113.4,5.94]
[1617658067046,38.51524876,2115.7,2115.6,5.76]
[1617658067248,38.51524876,2115.7,2113.2,3.5051]
[1617658067449,38.51524876,2115.7,2113.5,5.87]
[1617658067656,37.27235135,2115.7,2115.6,5.91]
[1617658067851,39.68521269,2115.7,2115.6,5.91]
[1617658068051,39.68521269,2115.7,2113.6,5.62]
[1617658068254,32.0,2115.7,2115.6,5.87]
[1617658068652,2.78321443,2115.2,2114.8,0.24]
[1617658068853,5.19221443,2115.2,2114.7,3.84665]
[1617658069053,2.409,2115.2,2114.7,2.90695]
[1617658069252,0.39857947,2115.1,2114.9,5.72]
[1617658069453,0.39857947,2115.1,2114.8,5.67]
[1617658069752,0.39857947,2115.1,2115.0,5.73]
[1617658070154,3.30552947,2115.1,2114.9,5.91]
[1617658070354,3.30552947,2115.1,2114.3,2.90695]
[1617658070355,1.94909928,2115.0,2114.6,0.9362]
[1617658070554,1.94909928,2115.0,2114.4,5.71]
[1617658070756,0.8897494,2114.5,2114.4,5.71]
[1617658070954,2.7120494,2114.5,2114.4,5.71]
[1617658071559,3.11066345,2114.5,2114.4,5.71]
[1617658072158,6.01761345,2114.5,2114.4,5.71]
[1617658072360,5.12786405,2114.5,2113.9,2.90695]
[1617658072558,5.12786405,2114.5,2114.0,3.12]
[1617658072759,5.84152544,2114.5,2114.4,5.94]
[1617658072959,5.84152544,2114.5,2113.9,2.90695]
[1617658073158,5.84152544,2114.5,2114.1,5.81]
[1617658073360,5.84152544,2114.5,2114.4,5.77]
[1617658073760,5.84152544,2114.5,2114.2,5.95]
[1617658073959,5.84152544,2114.5,2114.1,5.95]
[1617658074161,2.90695,2114.2,2113.6,2.90695]
[1617658074560,2.90695,2114.2,2113.7,3.11]
[1617658074763,0.66739549,2114.0,2113.7,3.11]
[1617658074962,3.38589549,2114.0,2113.7,3.11]
[1617658075361,0.05550231,2113.8,2113.7,3.11]
[1617658076162,2.90695,2113.8,2113.7,3.11]
[1617658085076,2.96236673,2113.8,2113.7,3.11]
[1617658085477,2.90695,2113.8,2113.7,3.11]
[1617658085876,2.96236671,2113.8,2113.7,3.11]
[1617658086279,2.90695,2113.8,2113.7,3.11]
[1617658087580,2.96238315,2113.8,2113.7,3.11]
[1617658087778,2.96238315,2113.8,2113.4,5.73]
[1617658087979,2.96238315,2113.8,2113.7,5.76]
[1617658088378,2.96238315,2113.8,2113.5,5.88]
[1617658088579,2.96238315,2113.8,2113.7,5.79]
[1617658088980,2.96238315,2113.8,2113.5,5.56]
[1617658089179,2.96238315,2113.8,2113.7,5.8]
[1617658089578,2.96238315,2113.8,2113.5,5.76]
[1617658090681,2.90695,2113.8,2113.5,5.76]
[1617658091082,3.57229737,2113.8,2112.1,5.75]
[1617658091480,3.57229737,2113.8,2111.7,3.5]
[1617658091481,0.66535908,2113.7,2113.6,5.73]
[1617658091681,0.66535908,2113.7,2112.2,5.72]
[1617658091881,0.0554491,2113.1,2112.2,5.72]
[1617658092080,30.0,2113.0,2111.7,5.9]
[1617658092280,30.05545299,2113.0,2112.3,5.71]
[1617658092480,0.05545811,2112.7,2112.3,5.71]
[1617658092680,0.05545811,2112.7,2111.7,5.78]
[1617658092882,0.05545811,2112.7,2112.4,5.07]
[1617658093281,0.0554611,2112.6,2111.8,5.9]
[1617658093481,2.5307611,2112.6,2112.5,4.83]
[1617658093683,34.4753,2112.6,2112.5,4.83]
[1617658093882,30.0,2112.4,2111.9,4.79]
[1617658094081,30.0,2112.4,2112.3,5.72]
[1617658094282,30.0,2112.4,2110.7,0.9554]
[1617658094283,32.0,2112.4,2111.0,0.55]
[1617658094482,34.90695,2112.4,2112.0,5.39]
[1617658094681,34.90695,2112.4,2112.3,5.8]
[1617658094881,34.90695,2112.4,2112.1,5.73]
[1617658095282,34.90695,2112.4,2110.8,5.87]
[1617658095481,34.90695,2112.4,2111.8,5.77]
[1617658095681,34.90695,2112.4,2112.2,5.72]
[1617658095882,34.90695,2112.4,2110.9,5.64]
[1617658096081,34.90695,2112.4,2111.9,5.39]
[1617658096282,34.90695,2112.4,2112.3,5.79]
[1617658096483,34.90695,2112.4,2109.3,2.0]
[1617658096484,32.0,2112.4,2111.2,2.90695]
[1617658096682,32.0,2112.4,2112.0,4.57]
[1617658096882,32.0,2112.4,2112.3,5.9]
[1617658097082,32.0,2112.4,2112.3,0.9446]
[1617658097284,32.0,2112.4,2112.1,5.71]
[1617658097482,32.0,2112.4,2112.3,4.8155]
[1617658098482,34.90695,2112.4,2112.3,4.8155]
[1617658100783,34.90695,2112.4,2111.2,2.90695]
[1617658101184,34.90695,2112.4,2112.3,5.69]
[1617658101386,34.90695,2112.4,2111.2,2.90695]
[1617658101787,34.90695,2112.4,2112.3,5.84]
[1617658101988,34.90695,2112.4,2111.3,5.89]
[1617658102186,34.90695,2112.4,2111.2,2.90695]
[1617658102386,32.0,2112.4,2112.3,5.86]
[1617658102588,32.0,2112.4,2111.3,5.92]
[1617658102787,32.0,2112.4,2111.2,2.90695]
[1617658102987,32.0,2112.4,2112.3,5.77]
[1617658103187,32.0,2112.4,2111.3,5.95]
[1617658103387,32.0,2112.4,2111.2,2.90695]
[1617658103588,32.0,2112.4,2112.3,5.81]
[1617658103787,32.0,2112.4,2111.3,5.8]
[1617658103989,32.0,2112.4,2111.2,2.90695]
[1617658104189,32.0,2112.4,2112.3,5.71]
[1617658104387,34.90695,2112.4,2111.3,5.79]
[1617658104589,34.90695,2112.4,2111.2,2.90695]
[1617658104988,34.90695,2112.4,2111.3,5.89]
[1617658106390,2.90695,2111.4,2111.3,5.89]
[1617658109090,2.90695,2111.4,2111.3,6.8398]
[1617658111594,2.90695,2111.4,2111.3,5.89]
[1617658112594,2.90695,2111.4,2111.3,6.8411]
[1617658112998,2.90695,2111.4,2111.3,5.89]
[1617658114094,2.90695,2111.4,2111.3,6.8372]
[1617658114295,2.90695,2111.4,2111.3,5.89]
[1617658114594,62.04545,2111.4,2111.3,5.89]
[1617658117698,64.65755,2111.4,2111.3,5.89]
[1617658121201,5.51905,2111.4,2111.3,5.89]
[1617658121402,2.90695,2111.4,2111.3,5.89]
[1617658122403,2.90695,2111.4,2111.3,6.8438]
[1617658122605,2.90695,2111.4,2111.3,5.89]
[1617658126807,2.90695,2111.4,2111.3,6.823]
[1617658127109,2.90695,2111.4,2111.3,5.89]
[1617658130413,2.38435,2111.4,2111.3,5.89]
[1617658145733,3.33315,2111.4,2111.3,5.89]
[1617658145933,3.33315,2111.4,2110.3,2.0]
[1617658146133,2.38435,2111.4,2111.3,5.95]
[1617658146535,2.38435,2111.4,2110.4,5.94]
[1617658146735,2.7229,2111.5,2111.3,5.79]
[1617658146936,32.6675,2112.1,2111.3,5.79]
[1617658147135,75.9148,2111.3,2110.7,0.1]
[1617658147335,78.0732,2111.3,2110.7,0.1]
[1617658147539,78.0732,2111.3,2110.6,2.90695]
[1617658147739,78.0732,2111.3,2110.7,5.96]
[1617658148837,2.90695,2110.8,2110.7,5.96]
[1617658153444,2.90695,2110.8,2110.7,6.9181]
[1617658153644,2.90695,2110.8,2110.7,5.96]
[1617658153844,5.58595,2110.8,2110.7,5.96]
[1617658154644,5.58595,2110.8,2110.7,6.9157]
[1617658154844,5.58595,2110.8,2110.7,5.96]
[1617658157046,3.68505,2110.8,2110.7,5.96]
[1617658157446,4.63115,2110.8,2110.7,5.96]
[1617658157648,3.68505,2110.8,2110.7,6.9131]
[1617658158049,3.68505,2110.8,2110.7,5.96]
[1617658159248,3.68505,2110.8,2110.7,6.9027]
[1617658159448,3.68505,2110.8,2110.7,5.96]
[1617658160549,3.68505,2110.8,2110.7,6.9209]
[1617658160752,3.68505,2110.8,2110.7,5.96]
[1617658169261,3.68505,2110.8,2110.5,2.90695]
[1617658169462,3.68505,2110.8,2110.6,5.7]
[1617658169662,3.68505,2110.8,2110.7,5.89]
[1617658169862,3.68505,2110.8,2110.5,2.90695]
[1617658170062,3.68505,2110.8,2110.6,5.92]
[1617658170263,3.68505,2110.8,2110.7,5.9]
[1617658170464,3.68505,2110.8,2109.5,2.0]
[1617658170662,3.68505,2110.8,2110.6,5.96]
[1617658170863,3.68505,2110.8,2110.7,5.77]
[1617658171064,3.68505,2110.8,2110.5,2.90695]
[1617658171465,3.68505,2110.8,2110.7,5.91]
[1617658171663,3.68505,2110.8,2110.6,5.78]
[1617658171863,3.68505,2110.8,2110.5,2.90695]
[1617658172065,3.68505,2110.8,2110.7,5.71]
[1617658172264,3.68505,2110.8,2110.6,5.92]
[1617658173365,3.68505,2110.8,2110.6,5.9]
[1617658175269,4.57683791,2110.8,2110.6,5.9]
[1617658180676,0.89179992,2110.7,2110.6,5.9]
[1617658183076,1.11484264,2110.7,2110.6,5.9]
[1617658183777,4.18833522,2110.8,2110.6,5.9]
[1617658184177,1.39409012,2110.7,2110.6,5.9]
[1617658186579,0.50289235,2110.7,2110.6,5.9]
[1617658188785,1.61723293,2110.7,2110.6,5.9]
[1617658189184,1.11434058,2110.7,2110.6,5.9]
[1617658191087,6.14129306,2110.8,2110.6,5.9]
[1617658195491,1.11358237,2110.7,2110.6,5.9]
[1617658201896,2.62268633,2110.8,2110.6,5.9]
[1617658202898,2.1194867,2110.8,2110.6,5.9]
[1617658203399,0.50275752,2110.7,2110.6,5.9]
[1617658207902,1.3935019,2110.7,2110.6,5.9]
[1617658208702,0.50275752,2110.7,2110.6,5.9]
[1617658209503,1.61665336,2110.7,2110.6,5.9]
[1617658209804,0.50275752,2110.7,2110.6,5.9]
[1617658210905,1.61668199,2110.7,2110.6,5.9]
[1617658211308,0.50275752,2110.7,2110.6,5.9]
[1617658212009,1.61667304,2110.7,2110.6,5.9]
[1617658213509,0.50275752,2110.7,2110.6,5.9]
[1617658213709,2.65485752,2110.7,2110.6,5.9]
[1617658217018,2.165,2110.7,2110.6,5.9]
[1617658217719,4.11723136,2110.7,2110.6,5.9]
[1617658218121,2.165,2110.7,2110.6,5.9]
[1617658219521,2.95827431,2110.8,2110.6,5.9]
[1617658219721,3.79689912,2110.8,2110.6,5.9]
[1617658220021,1.00605,2110.8,2110.6,5.9]
[1617658220421,1.95399425,2110.7,2110.6,5.9]
[1617658224023,4.14119425,2110.7,2110.6,5.9]
[1617658224423,3.94009425,2110.7,2110.6,5.9]
[1617658225026,2.1872,2110.7,2110.6,5.9]
[1617658229226,3.79637678,2110.8,2110.6,5.9]
[1617658230728,4.91622707,2110.8,2110.6,5.9]
[1617658233132,3.90943823,2110.7,2110.6,5.9]
[1617658233332,6.34283823,2110.7,2110.6,5.9]
[1617658234335,2.4334,2110.7,2110.6,5.9]
[1617658235342,3.371,2110.7,2110.6,5.9]
[1617658235542,2.4334,2110.7,2110.6,5.9]
[1617658236142,6.34290188,2110.7,2110.6,5.9]
[1617658236545,2.4334,2110.7,2110.6,5.9]
[1617658236943,6.34283976,2110.7,2110.6,5.9]
[1617658237143,3.90943976,2110.7,2110.6,5.9]
[1617658237344,2.79312148,2110.7,2110.6,5.9]
[1617658238444,3.79914277,2110.8,2110.6,5.9]
[1617658239046,1.9559809,2110.7,2110.6,5.9]
[1617658240845,3.8009578,2110.8,2110.6,5.9]
[1617658247147,2.79555113,2110.7,2110.6,5.9]
[1617658247347,5.52755113,2110.7,2110.6,5.9]
[1617658251652,2.732,2110.7,2110.6,5.9]
[1617658252055,6.64764987,2110.7,2110.6,5.9]
[1617658253454,2.732,2110.7,2110.6,5.9]
[1617658253654,6.04012549,2110.8,2110.6,5.9]
[1617658253854,5.03410114,2110.7,2110.6,5.9]